[Event "Commonwealth Open 2019"]
[Site "Delhi"]
[Date "2019.06.30"]
[Round "1.12"]
[White "Kunte, Abhijit"]
[Black "Sa, Kannan"]
[Result "1-0"]
[ECO "D02"]
[WhiteElo "2478"]
[BlackElo "1947"]
[Annotator "ChessBase"]
[PlyCount "69"]
[EventDate "2019.06.30"]
[EventType "swiss"]
[EventCountry "IND"]
[SourceTitle "playchess.com"]
[Source "ChessBase"]
[SourceQuality "1"]
[TimeControl "5400+30"]

1. Nf3 {[%emt 0:00:00]} d5 {[%emt 0:18:08]} 2. d4 {[%emt 0:00:58]} Nf6 {[%emt 0:00:52]} 3. c4 {[%emt 0:00:07]} e6 {[%emt 0:00:32]} 4. g3 {[%emt 0:00:08]} Ne4 {[%emt 0:01:34]} 5. Bg2 {[%emt 0:00:34]} f5 {[%emt 0:02:18]} 6. O-O {[%emt 0:03:30]} c6 {[%emt 0:00:41]} 7. Ne5 {[%emt 0:05:36]} Nd7 {[%emt 0:04:54]} 8. Qc2 {[%emt 0:01:52]} Bd6 {[%emt 0:02:18]} 9. Nd3 {[%emt 0:03:16]} O-O {[%emt 0:01:10]} 10. Bf4 {[%emt 0:02:52]} g5 {[%emt 0:02:23]} 11. Bxd6 {[%emt 0:00:24]} Nxd6 {[%emt 0:00:05]} 12. Nd2 {[%emt 0:00:23]} Qf6 {[%emt 0:02:18]} 13. e3 {[%emt 0:00:43]} h5 {[%emt 0:01:38]} 14. b4 {[%emt 0:00:35]} a6 {[%emt 0:05:38]} 15. a4 {[%emt 0:03:56]} h4 {[%emt 0:03:54]} 16. gxh4 {[%emt 0:04:29]} gxh4 {[%emt 0:03:21]} 17. f4 {[%emt 0:00:04]} Ne4 {[%emt 0:01:25]} 18. Kh1 {[%emt 0:01:22]} Kf7 {[%emt 0:01:30]} 19. Ne5+ {[%emt 0:01:54]} Ke7 {[%emt 0:01:27]} 20. Bxe4 {[%emt 0:03:24]} dxe4 {[%emt 0:02:03]} 21. Rg1 {[%emt 0:00:16]} Nxe5 {[%emt 0:00:34]} 22. dxe5 {[%emt 0:00:28]} Qh6 {[%emt 0:02:35]} 23. Nb3 {[%emt 0:02:15]} Rd8 {[%emt 0:13:56]} 24. Qg2 {[%emt 0:02:57]} Kf7 {[%emt 0:01:26]} 25. Qg5 {[%emt 0:05:49]} Qxg5 {[%emt 0:08:41]} 26. Rxg5 {[%emt 0:00:10]} Bd7 {[%emt 0:02:03]} 27. Rag1 {[%emt 0:01:35]} Rg8 {[%emt 0:06:27]} 28. Rxg8 {[%emt 0:02:30]} Rxg8 {[%emt 0:00:08]} 29. Rxg8 {[%emt 0:00:06]} Kxg8 {[%emt 0:00:04]} 30. c5 {[%emt 0:00:54]} Kf7 {[%emt 0:04:16]} 31. Na5 {[%emt 0:00:13]} Bc8 {[%emt 0:02:10]} 32. Kg2 {[%emt 0:00:10]} Kg6 {[%emt 0:02:35]} 33. Nc4 {[%emt 0:00:11]} Bd7 {[%emt 0:00:06]} 34. Nd6 {[%emt 0:00:14]} Kh5 {[%emt 0:01:08]} 35. Kh3 {[%emt 0:00:06]} 1-0

[Event "Commonwealth Open 2019"]
[Site "Delhi"]
[Date "2019.06.30"]
[Round "1.13"]
[White "Sanjeet Manohar"]
[Black "Thejkumar, GM M. S."]
[Result "0-1"]
[ECO "B12"]
[WhiteElo "1905"]
[BlackElo "2458"]
[Annotator "ChessBase"]
[PlyCount "65"]
[EventDate "2019.06.30"]
[EventType "swiss"]
[EventCountry "IND"]
[SourceTitle "playchess.com"]
[Source "ChessBase"]
[SourceQuality "1"]
[TimeControl "5400+30"]

1. e4 {[%emt 0:00:00]} c6 {[%emt 0:00:00]} 2. d4 {[%emt 0:00:00]} d5 {[%emt 0:00:02]} 3. e5 {[%emt 0:00:00]} Bf5 {[%emt 0:00:28]} 4. Nf3 {[%emt 0:00:00]} e6 {[%emt 0:00:30]} 5. Be2 {[%emt 0:00:00]} Ne7 {[%emt 0:00:31]} 6. O-O {[%emt 0:00:37]} c5 {[%emt 0:01:03]} 7. c4 {[%emt 0:01:47]} Nbc6 {[%emt 0:04:33]} 8. dxc5 {[%emt 0:06:46]} d4 {[%emt 0:01:17]} 9. Bd3 {[%emt 0:04:49]} Bxd3 {[%emt 0:02:17]} 10. Qxd3 {[%emt 0:00:06]} Ng6 {[%emt 0:00:57]} 11. Re1 {[%emt 0:09:05]} Bxc5 {[%emt 0:02:54]} 12. a3 {[%emt 0:02:02]} a5 {[%emt 0:03:29]} 13. b3 {[%emt 0:00:33]} O-O {[%emt 0:04:29]} 14. Nbd2 {[%emt 0:03:33]} Qc7 {[%emt 0:08:37]} 15. Qe4 {[%emt 0:00:21]} Rad8 {[%emt 0:01:24]} 16. h4 {[%emt 0:07:10]} d3 {[%emt 0:02:12]} 17. h5 {[%emt 0:03:07]} Ngxe5 {[%emt 0:04:00]} 18. Bb2 {[%emt 0:11:00]} Nxf3+ {[%emt 0:01:22]} 19. Nxf3 {[%emt 0:00:57]} Rfe8 {[%emt 0:10:45]} 20. Qh4 {[%emt 0:12:30]} h6 {[%emt 0:06:16]} 21. Rad1 {[%emt 0:06:15]} Qb6 {[%emt 0:08:21]} 22. Qg3 {[%emt 0:03:13]} Bf8 {[%emt 0:00:13]} 23. Nh2 {[%emt 0:04:26]} Qxb3 {[%emt 0:06:52]} 24. Bf6 {[%emt 0:02:27]} Nd4 {[%emt 0:05:16]} 25. Rd2 {[%emt 0:06:51]} Nf5 {[%emt 0:06:01]} 26. Qg4 {[%emt 0:00:43]} Rc8 {[%emt 0:00:22]} 27. Ba1 {[%emt 0:04:03]} Rxc4 {[%emt 0:01:45]} 28. Qf3 {[%emt 0:00:37]} Rd8 {[%emt 0:02:27]} 29. Ng4 {[%emt 0:02:10]} Rc2 {[%emt 0:00:47]} 30. Red1 {[%emt 0:00:37]} Rxd2 {[%emt 0:01:02]} 31. Rxd2 {[%emt 0:00:06]} Qxa3 {[%emt 0:00:13]} 32. Bb2 {[%emt 0:00:46]} Qb4 {[%emt 0:00:20]} 33. Kf1 0-1

[Event "Commonwealth Open 2019"]
[Site "Delhi"]
[Date "2019.06.30"]
[Round "1.14"]
[White "Karthikeyan, P.."]
[Black "Ashwin, Hariharan"]
[Result "1-0"]
[ECO "A09"]
[WhiteElo "2445"]
[BlackElo "1882"]
[Annotator "ChessBase"]
[PlyCount "93"]
[EventDate "2019.06.30"]
[EventType "swiss"]
[EventCountry "IND"]
[SourceTitle "playchess.com"]
[Source "ChessBase"]
[SourceQuality "1"]
[TimeControl "5400+30"]

1. Nf3 {[%emt 0:00:05]} d5 {[%emt 0:00:34]} 2. c4 {[%emt 0:00:06]} dxc4 {[%emt 0:01:47]} 3. Qa4+ {[%emt 0:00:12]} Nd7 {[%emt 0:05:53]} 4. g3 {[%emt 0:00:21]} a6 {[%emt 0:02:57]} 5. Qxc4 {[%emt 0:00:53]} b5 {[%emt 0:07:24]} 6. Qc6 {[%emt 0:00:21]} Rb8 {[%emt 0:00:52]} 7. Bg2 {[%emt 0:01:50]} Bb7 {[%emt 0:00:29]} 8. Qc2 {[%emt 0:00:18]} e6 {[%emt 0:13:27]} 9. O-O {[%emt 0:02:06]} c5 {[%emt 0:09:21]} 10. a4 {[%emt 0:01:14]} Ngf6 {[%emt 0:02:47]} 11. d3 {[%emt 0:04:26]} Bd6 {[%emt 0:02:44]} 12. Nc3 {[%emt 0:01:40]} Qb6 {[%emt 0:04:34]} 13. e4 {[%emt 0:03:11]} O-O {[%emt 0:03:16]} 14. h3 {[%emt 0:04:42]} Bc6 {[%emt 0:05:14]} 15. axb5 {[%emt 0:02:19]} axb5 {[%emt 0:00:15]} 16. Bg5 {[%emt 0:00:20]} Qb7 {[%emt 0:05:00]} 17. Qe2 {[%emt 0:01:47]} h6 {[%emt 0:03:03]} 18. Be3 {[%emt 0:04:35]} Ra8 {[%emt 0:01:47]} 19. Rac1 {[%emt 0:02:01]} Rfd8 {[%emt 0:10:25]} 20. Nd2 {[%emt 0:02:59]} Be7 {[%emt 0:06:38]} 21. f4 {[%emt 0:02:03]} Nb6 {[%emt 0:03:50]} 22. Rfd1 {[%emt 0:03:05]} Qa6 {[%emt 0:03:44]} 23. Nb3 {[%emt 0:17:17]} b4 {[%emt 0:04:56]} 24. Bxc5 {[%emt 0:01:26]} Bxc5+ {[%emt 0:00:31]} 25. Nxc5 {[%emt 0:00:04]} Qa7 {[%emt 0:00:29]} 26. Nb1 {[%emt 0:00:39]} Na4 {[%emt 0:00:21]} 27. d4 {[%emt 0:12:40]} Nxc5 {[%emt 0:00:09]} 28. dxc5 {[%emt 0:00:32]} Rxd1+ {[%emt 0:00:06]} 29. Qxd1 {[%emt 0:00:03]} Bxe4 {[%emt 0:00:52]} 30. Qd4 {[%emt 0:01:06]} Bxg2 {[%emt 0:00:46]} 31. Kxg2 {[%emt 0:00:02]} Nd5 {[%emt 0:00:13]} 32. Nd2 {[%emt 0:00:06]} Qa6 {[%emt 0:01:04]} 33. Nc4 {[%emt 0:00:56]} Rc8 {[%emt 0:00:26]} 34. Kf2 {[%emt 0:00:24]} Qc6 {[%emt 0:00:35]} 35. Ne5 {[%emt 0:00:22]} Qb5 {[%emt 0:00:23]} 36. f5 {[%emt 0:01:06]} Qb7 {[%emt 0:00:36]} 37. c6 {[%emt 0:00:37]} Qb6 {[%emt 0:00:26]} 38. Qxb6 {[%emt 0:00:34]} Nxb6 {[%emt 0:00:01]} 39. fxe6 {[%emt 0:00:13]} fxe6 {[%emt 0:00:02]} 40. Ra1 {[%emt 0:05:46]} Rc7 {[%emt 0:01:31]} 41. Ke3 {[%emt 0:00:16]} Kf8 {[%emt 0:00:29]} 42. Kd4 {[%emt 0:00:08]} Ke7 {[%emt 0:00:32]} 43. Kc5 {[%emt 0:00:22]} Nd5 {[%emt 0:00:04]} 44. Ra8 {[%emt 0:01:08]} Nf6 {[%emt 0:00:55]} 45. Ng6+ {[%emt 0:05:02]} Kf7 {[%emt 0:00:01]} 46. Kd6 {[%emt 0:00:04]} Nd5 {[%emt 0:00:12]} 47. Nf4 {[%emt 0:02:06]} 1-0

[Event "Commonwealth Open 2019"]
[Site "Delhi"]
[Date "2019.06.30"]
[Round "1.15"]
[White "Sumit, Grover"]
[Black "Laxman, R.R."]
[Result "0-1"]
[ECO "E15"]
[WhiteElo "1875"]
[BlackElo "2437"]
[Annotator "NA"]
[PlyCount "110"]
[EventDate "2019.06.30"]
[EventType "swiss"]
[EventCountry "IND"]
[SourceTitle "playchess.com"]
[Source "ChessBase"]
[SourceQuality "1"]
[TimeControl "5400+30"]

1. Nf3 {[%emt 0:00:00]} Nf6 {[%emt 0:06:44]} 2. c4 {[%emt 0:00:00]} e6 {[%emt 0:00:20]} 3. d4 {[%emt 0:02:53]} b6 {[%emt 0:00:13]} 4. g3 {[%emt 0:00:07]} Ba6 {[%emt 0:00:14]} 5. b3 {[%emt 0:00:53]} Bb7 {[%emt 0:00:17]} 6. Bg2 {[%emt 0:00:08]} Bb4+ {[%emt 0:00:08]} 7. Bd2 {[%emt 0:00:11]} c5 {[%emt 0:00:06]} 8. O-O {[%emt 0:01:11]} O-O {[%emt 0:00:09]} 9. Bxb4 {[%emt 0:11:42]} cxb4 {[%emt 0:00:27]} 10. Qd3 {[%emt 0:00:30]} a5 {[%emt 0:01:17]} 11. Nbd2 {[%emt 0:02:16]} d6 {[%emt 0:00:11]} 12. e4 {[%emt 0:00:49]} e5 {[%emt 0:00:28]} 13. Ne1 {[%emt 0:05:30]} Nbd7 {[%emt 0:01:39]} 14. Nc2 {[%emt 0:00:47]} Qc7 {[%emt 0:00:22]} 15. a3 {[%emt 0:01:28]} bxa3 {[%emt 0:00:24]} 16. Rxa3 {[%emt 0:02:25]} Rfe8 {[%emt 0:00:56]} 17. Rfa1 {[%emt 0:01:12]} exd4 {[%emt 0:01:00]} 18. Nxd4 {[%emt 0:01:13]} Nc5 {[%emt 0:01:45]} 19. Nb5 {[%emt 0:02:38]} Qe7 {[%emt 0:01:36]} 20. Qxd6 {[%emt 0:00:27]} Rad8 {[%emt 0:00:09]} 21. Qxe7 {[%emt 0:03:29]} Rxe7 {[%emt 0:00:06]} 22. Nf1 {[%emt 0:01:50]} Bxe4 {[%emt 0:01:18]} 23. Re1 {[%emt 0:04:33]} Kf8 {[%emt 0:04:27]} 24. Bxe4 {[%emt 0:02:36]} Nfxe4 {[%emt 0:01:08]} 25. Kg2 {[%emt 0:01:44]} Red7 {[%emt 0:02:36]} 26. Re3 {[%emt 0:05:08]} Rd3 {[%emt 0:02:23]} 27. Nc7 {[%emt 0:03:26]} Rxe3 {[%emt 0:00:40]} 28. fxe3 {[%emt 0:00:44]} Rd3 {[%emt 0:00:32]} 29. Nd5 {[%emt 0:02:42]} a4 {[%emt 0:00:10]} 30. Rxa4 {[%emt 0:02:14]} Nxa4 {[%emt 0:00:03]} 31. bxa4 {[%emt 0:00:08]} Rb3 {[%emt 0:00:07]} 32. Kf3 {[%emt 0:00:39]} f5 {[%emt 0:00:02]} 33. g4 {[%emt 0:00:16]} Nd6 {[%emt 0:02:24]} 34. gxf5 {[%emt 0:02:23]} Nxf5 {[%emt 0:00:04]} 35. Ke4 {[%emt 0:01:11]} Nd6+ {[%emt 0:00:29]} 36. Kd4 {[%emt 0:00:13]} Rb2 {[%emt 0:02:32]} 37. e4 {[%emt 0:00:58]} Nc8 {[%emt 0:01:07]} 38. e5 {[%emt 0:03:46]} Ra2 {[%emt 0:00:18]} 39. h4 {[%emt 0:05:34]} Rxa4 {[%emt 0:00:25]} 40. Nfe3 {[%emt 0:00:02]} Ra2 {[%emt 0:00:31]} 41. e6 {[%emt 0:01:07]} Rh2 {[%emt 0:00:38]} 42. Nf5 {[%emt 0:03:37]} Re2 {[%emt 0:01:37]} 43. Nfe3 {[%emt 0:03:06]} g6 {[%emt 0:00:41]} 44. Ke5 {[%emt 0:02:41]} Kg7 {[%emt 0:02:04]} 45. Kf4 {[%emt 0:01:17]} Rf2+ {[%emt 0:00:50]} 46. Ke5 {[%emt 0:03:49]} Rh2 {[%emt 0:00:14]} 47. Ng4 {[%emt 0:01:45]} Rxh4 {[%emt 0:00:28]} 48. Ngf6 {[%emt 0:01:45]} Rh1 {[%emt 0:00:08]} 49. e7 {[%emt 0:01:47]} Re1+ {[%emt 0:00:08]} 50. Ne4 {[%emt 0:01:55]} Kf7 {[%emt 0:00:09]} 51. Ndf6 {[%emt 0:04:03]} Kxe7 {[%emt 0:00:20]} 52. Nxh7 {[%emt 0:00:09]} Nd6 {[%emt 0:00:03]} 53. Nhf6 {[%emt 0:00:14]} Nxe4 {[%emt 0:00:07]} 54. Nxe4 {[%emt 0:00:32]} Rxe4+ {[%emt 0:00:04]} 55. Kxe4 {[%emt 0:00:11]} Kd6 {[%emt 0:00:03]} 0-1

[Event "Commonwealth Open 2019"]
[Site "Delhi"]
[Date "2019.06.30"]
[Round "1.16"]
[White "Shyaamnikhil P"]
[Black "Muhammed, Shuaau"]
[Result "1-0"]
[ECO "C11"]
[WhiteElo "2434"]
[BlackElo "1868"]
[Annotator "NA"]
[PlyCount "67"]
[EventDate "2019.06.30"]
[EventType "swiss"]
[EventCountry "IND"]
[SourceTitle "playchess.com"]
[Source "ChessBase"]
[SourceQuality "1"]
[TimeControl "5400+30"]

1. Nf3 {[%emt 0:03:15]} e6 {[%emt 0:00:06]} 2. e4 {[%emt 0:03:16]} d5 {[%emt 0:00:40]} 3. Nc3 {[%emt 0:00:08]} d4 {[%emt 0:03:13]} 4. Nb5 {[%emt 0:01:23]} c5 {[%emt 0:00:36]} 5. a4 {[%emt 0:00:10]} Nc6 {[%emt 0:01:49]} 6. d3 {[%emt 0:01:01]} e5 {[%emt 0:02:40]} 7. Be2 {[%emt 0:01:15]} a6 {[%emt 0:01:46]} 8. Na3 {[%emt 0:00:10]} Bd6 {[%emt 0:00:11]} 9. O-O {[%emt 0:01:20]} b5 {[%emt 0:08:00]} 10. c3 {[%emt 0:03:50]} Rb8 {[%emt 0:03:15]} 11. axb5 {[%emt 0:01:19]} axb5 {[%emt 0:00:08]} 12. c4 {[%emt 0:00:06]} bxc4 {[%emt 0:02:31]} 13. Nxc4 {[%emt 0:00:10]} Nge7 {[%emt 0:00:34]} 14. Nfd2 {[%emt 0:01:11]} O-O {[%emt 0:01:39]} 15. f4 {[%emt 0:01:03]} Be6 {[%emt 0:12:57]} 16. Nxd6 {[%emt 0:01:15]} Qxd6 {[%emt 0:00:56]} 17. f5 {[%emt 0:00:08]} Bd7 {[%emt 0:01:32]} 18. Nc4 {[%emt 0:00:07]} Qc7 {[%emt 0:04:56]} 19. f6 {[%emt 0:01:19]} Ng6 {[%emt 0:02:03]} 20. fxg7 {[%emt 0:01:44]} Kxg7 {[%emt 0:00:33]} 21. Bg4 {[%emt 0:00:22]} Be6 {[%emt 0:06:10]} 22. Bf5 {[%emt 0:00:49]} Bxc4 {[%emt 0:08:40]} 23. dxc4 {[%emt 0:00:07]} Nce7 {[%emt 0:02:47]} 24. Qh5 {[%emt 0:01:36]} Kh8 {[%emt 0:15:40]} 25. Bh6 {[%emt 0:07:44]} Rg8 {[%emt 0:09:08]} 26. Bh3 {[%emt 0:02:58]} Nf4 {[%emt 0:03:23]} 27. Rxf4 {[%emt 0:00:46]} exf4 {[%emt 0:00:37]} 28. Qxf7 {[%emt 0:00:06]} Qe5 {[%emt 0:05:39]} 29. Bxf4 {[%emt 0:00:34]} Qg7 {[%emt 0:01:00]} 30. Qxg7+ {[%emt 0:03:58]} Kxg7 31. Ra7 {[%emt 0:04:10]} Kf6 {[%emt 0:01:47]} 32. Ra6+ {[%emt 0:01:17]} Kf7 {[%emt 0:00:32]} 33. Be6+ {[%emt 0:00:08]} Kg7 {[%emt 0:00:31]} 34. Be5+ {[%emt 0:00:07]} 1-0

[Event "Commonwealth Open 2019"]
[Site "Delhi"]
[Date "2019.06.30"]
[Round "1.17"]
[White "Chudasama Ankit"]
[Black "Divya Deshmukh"]
[Result "1/2-1/2"]
[ECO "B23"]
[WhiteElo "1852"]
[BlackElo "2414"]
[Annotator "ChessBase"]
[PlyCount "155"]
[EventDate "2019.06.30"]
[EventType "swiss"]
[EventCountry "IND"]
[SourceTitle "playchess.com"]
[Source "ChessBase"]
[SourceQuality "1"]
[TimeControl "5400+30"]

1. e4 {[%emt 0:00:49]} c5 {[%emt 0:00:00]} 2. Nc3 {[%emt 0:00:18]} Nc6 {[%emt 0:00:03]} 3. Nge2 {[%emt 0:01:26]} Nd4 {[%emt 0:00:47]} 4. Nxd4 {[%emt 0:01:06]} cxd4 {[%emt 0:00:02]} 5. Ne2 {[%emt 0:00:12]} e5 {[%emt 0:00:04]} 6. Ng3 {[%emt 0:01:10]} g6 {[%emt 0:03:18]} 7. Bc4 {[%emt 0:00:21]} Bg7 {[%emt 0:00:05]} 8. d3 {[%emt 0:01:16]} Ne7 {[%emt 0:00:23]} 9. Bg5 {[%emt 0:01:51]} h6 {[%emt 0:02:28]} 10. Bd2 {[%emt 0:03:07]} O-O {[%emt 0:00:54]} 11. h4 {[%emt 0:01:48]} d5 {[%emt 0:02:01]} 12. Bb3 {[%emt 0:01:03]} Be6 {[%emt 0:03:58]} 13. Qe2 {[%emt 0:13:52]} Kh7 {[%emt 0:03:17]} 14. h5 {[%emt 0:02:12]} g5 {[%emt 0:03:30]} 15. Bb4 {[%emt 0:07:33]} Re8 {[%emt 0:03:46]} 16. Bxe7 {[%emt 0:02:36]} Rxe7 {[%emt 0:00:23]} 17. exd5 {[%emt 0:00:54]} Bxd5 {[%emt 0:00:15]} 18. Nf5 {[%emt 0:04:46]} Re6 {[%emt 0:00:23]} 19. O-O {[%emt 0:05:43]} Rc8 {[%emt 0:07:05]} 20. Rac1 {[%emt 0:02:34]} Bf6 {[%emt 0:03:00]} 21. c4 {[%emt 0:05:17]} dxc3 {[%emt 0:00:28]} 22. Rxc3 {[%emt 0:03:10]} Rxc3 {[%emt 0:04:19]} 23. bxc3 {[%emt 0:00:08]} Rb6 {[%emt 0:00:44]} 24. Bxd5 {[%emt 0:02:28]} Qxd5 {[%emt 0:00:09]} 25. Ne3 {[%emt 0:01:58]} Qc6 {[%emt 0:00:09]} 26. c4 {[%emt 0:04:06]} Qc5 {[%emt 0:04:29]} 27. Nd5 {[%emt 0:01:56]} Re6 {[%emt 0:00:06]} 28. Re1 {[%emt 0:08:41]} Bd8 {[%emt 0:04:18]} 29. Qe4+ {[%emt 0:02:43]} Kg8 {[%emt 0:00:58]} 30. Re3 {[%emt 0:01:25]} Qf8 {[%emt 0:07:07]} 31. Qf5 {[%emt 0:03:02]} Qe8 {[%emt 0:00:21]} 32. Rf3 {[%emt 0:02:20]} e4 {[%emt 0:04:57]} 33. Re3 {[%emt 0:02:40]} exd3 {[%emt 0:04:02]} 34. Qxd3 {[%emt 0:00:16]} Rxe3 {[%emt 0:01:00]} 35. Nxe3 {[%emt 0:00:54]} Bb6 {[%emt 0:00:36]} 36. Ng4 {[%emt 0:03:53]} Qe6 {[%emt 0:01:56]} 37. Qe4 {[%emt 0:02:25]} Qd6 {[%emt 0:03:17]} 38. g3 {[%emt 0:01:49]} Qxg3+ {[%emt 0:00:12]} 39. Kf1 {[%emt 0:00:10]} Qd6 {[%emt 0:00:21]} 40. Kg2 {[%emt 0:00:39]} Bd4 {[%emt 0:14:59]} 41. Qxb7 {[%emt 0:01:32]} Qe6 {[%emt 0:00:11]} 42. Qf3 {[%emt 0:02:05]} a6 {[%emt 0:01:42]} 43. Qf5 {[%emt 0:01:48]} Qb6 {[%emt 0:00:05]} 44. Qd5 {[%emt 0:00:50]} Kg7 {[%emt 0:00:13]} 45. Ne5 {[%emt 0:00:25]} Bxe5 {[%emt 0:02:19]} 46. Qxe5+ {[%emt 0:00:06]} Qf6 {[%emt 0:00:17]} 47. Qd5 {[%emt 0:00:28]} Qf4 {[%emt 0:00:25]} 48. c5 {[%emt 0:00:24]} Qg4+ {[%emt 0:03:00]} 49. Kf1 {[%emt 0:00:07]} Qxh5 {[%emt 0:00:03]} 50. c6 {[%emt 0:00:16]} Qh3+ {[%emt 0:00:04]} 51. Ke2 {[%emt 0:01:09]} Qg4+ {[%emt 0:01:27]} 52. Kd3 {[%emt 0:00:49]} Qd1+ {[%emt 0:02:01]} 53. Kc4 {[%emt 0:00:04]} Qa4+ {[%emt 0:00:06]} 54. Kc3 {[%emt 0:00:24]} Qa3+ {[%emt 0:00:52]} 55. Kc2 {[%emt 0:01:16]} Qe7 {[%emt 0:00:12]} 56. Qc4 {[%emt 0:00:19]} Qc7 {[%emt 0:00:46]} 57. Qxa6 {[%emt 0:00:06]} Qf4 {[%emt 0:00:22]} 58. Qb6 {[%emt 0:00:19]} Qe4+ {[%emt 0:01:15]} 59. Kc3 {[%emt 0:00:06]} Qe1+ {[%emt 0:00:23]} 60. Kc4 {[%emt 0:00:15]} Qe2+ {[%emt 0:00:10]} 61. Kb3 {[%emt 0:01:23]} Qe6+ {[%emt 0:01:36]} 62. Ka3 {[%emt 0:00:54]} Qd6+ {[%emt 0:04:22]} 63. Ka4 {[%emt 0:00:17]} h5 {[%emt 0:01:09]} 64. Qb7 {[%emt 0:01:10]} Qd5 {[%emt 0:00:14]} 65. Qb2+ {[%emt 0:00:14]} f6 {[%emt 0:00:08]} 66. Qc2 {[%emt 0:00:09]} h4 {[%emt 0:00:26]} 67. c7 {[%emt 0:00:07]} Qa8+ {[%emt 0:00:02]} 68. Kb3 Qc8 {[%emt 0:01:11]} 69. a4 {[%emt 0:00:52]} h3 {[%emt 0:00:11]} 70. f3 {[%emt 0:00:04]} Qe6+ {[%emt 0:03:13]} 71. Kb4 {[%emt 0:01:16]} Qb6+ {[%emt 0:00:38]} 72. Ka3 {[%emt 0:00:09]} Qd6+ {[%emt 0:00:01]} 73. Kb2 {[%emt 0:00:23]} Qe5+ {[%emt 0:00:50]} 74. Ka3 {[%emt 0:00:30]} h2 {[%emt 0:00:44]} 75. c8=Q Qe7+ {[%emt 0:00:04]} 76. Q8c5 {[%emt 0:00:45]} Qxc5+ {[%emt 0:00:03]} 77. Qxc5 {[%emt 0:00:04]} h1=Q {[%emt 0:00:05]} 78. Qe7+ 1/2-1/2

[Event "Commonwealth Open 2019"]
[Site "Delhi"]
[Date "2019.06.30"]
[Round "1.18"]
[White "Thipsay, GM Praveen M"]
[Black "Rathore, Sonakshi"]
[Result "1-0"]
[ECO "B01"]
[WhiteElo "2405"]
[BlackElo "1847"]
[Annotator "ChessBase"]
[PlyCount "119"]
[EventDate "2019.06.30"]
[EventType "swiss"]
[EventCountry "IND"]
[SourceTitle "playchess.com"]
[Source "ChessBase"]
[SourceQuality "1"]
[TimeControl "5400+30"]

1. e4 {[%emt 0:00:00]} d5 {[%emt 0:01:25]} 2. exd5 {[%emt 0:00:00]} Qxd5 {[%emt 0:00:08]} 3. Nf3 {[%emt 0:01:23]} Bg4 {[%emt 0:00:16]} 4. Be2 {[%emt 0:00:09]} Nc6 {[%emt 0:00:12]} 5. Nc3 {[%emt 0:02:31]} Qd7 {[%emt 0:02:43]} 6. O-O {[%emt 0:10:08]} O-O-O {[%emt 0:09:38]} 7. d3 {[%emt 0:12:19]} e6 {[%emt 0:08:03]} 8. a3 {[%emt 0:08:44]} Nf6 {[%emt 0:08:39]} 9. b4 {[%emt 0:00:13]} Bxf3 {[%emt 0:00:53]} 10. Bxf3 {[%emt 0:00:17]} Nd4 {[%emt 0:00:34]} 11. Be3 {[%emt 0:07:39]} e5 {[%emt 0:17:24]} 12. Re1 {[%emt 0:12:30]} Kb8 {[%emt 0:05:29]} 13. Rb1 {[%emt 0:15:56]} Nxf3+ {[%emt 0:17:52]} 14. Qxf3 {[%emt 0:00:05]} Qg4 {[%emt 0:00:22]} 15. Qxg4 {[%emt 0:00:31]} Nxg4 {[%emt 0:00:08]} 16. Bd2 {[%emt 0:00:42]} Bd6 {[%emt 0:02:45]} 17. f3 {[%emt 0:08:08]} Nf6 {[%emt 0:02:31]} 18. Nb5 {[%emt 0:08:40]} Rhe8 {[%emt 0:02:06]} 19. Be3 {[%emt 0:01:17]} b6 {[%emt 0:02:10]} 20. c4 {[%emt 0:01:30]} c6 {[%emt 0:03:00]} 21. Nc3 {[%emt 0:00:12]} Bc7 {[%emt 0:00:32]} 22. Rbd1 {[%emt 0:01:05]} Rd7 {[%emt 0:01:56]} 23. Kf1 {[%emt 0:00:08]} Red8 {[%emt 0:01:27]} 24. Ke2 {[%emt 0:00:08]} Kb7 {[%emt 0:00:20]} 25. a4 {[%emt 0:01:49]} Ne8 {[%emt 0:04:27]} 26. b5 {[%emt 0:01:59]} c5 {[%emt 0:00:18]} 27. a5 {[%emt 0:01:18]} Bb8 {[%emt 0:03:56]} 28. Na4 {[%emt 0:01:44]} Bd6 {[%emt 0:01:27]} 29. Kd2 {[%emt 0:00:19]} Nc7 {[%emt 0:00:22]} 30. Kc2 {[%emt 0:00:04]} Ne6 {[%emt 0:00:13]} 31. axb6 {[%emt 0:00:28]} axb6 {[%emt 0:00:10]} 32. Nc3 {[%emt 0:00:04]} Nd4+ {[%emt 0:02:37]} 33. Bxd4 {[%emt 0:00:09]} exd4 {[%emt 0:00:41]} 34. Nd5 {[%emt 0:00:06]} Ra8 {[%emt 0:00:55]} 35. Ra1 {[%emt 0:00:17]} Rdd8 {[%emt 0:00:42]} 36. Rxa8 {[%emt 0:02:01]} Rxa8 {[%emt 0:00:06]} 37. Kb3 {[%emt 0:00:09]} Rd8 {[%emt 0:01:07]} 38. g3 {[%emt 0:00:35]} Ra8 {[%emt 0:00:31]} 39. Kb2 {[%emt 0:00:16]} Rd8 {[%emt 0:00:08]} 40. Re4 {[%emt 0:00:25]} Ra8 {[%emt 0:00:48]} 41. Rh4 {[%emt 0:01:08]} h6 {[%emt 0:00:08]} 42. Rg4 {[%emt 0:00:04]} Bf8 {[%emt 0:00:54]} 43. Rf4 {[%emt 0:00:06]} f6 {[%emt 0:00:33]} 44. Re4 {[%emt 0:00:05]} Bd6 {[%emt 0:00:46]} 45. f4 {[%emt 0:00:42]} Rd8 {[%emt 0:00:25]} 46. g4 {[%emt 0:01:08]} Ka7 {[%emt 0:00:32]} 47. h4 {[%emt 0:00:11]} Kb7 {[%emt 0:00:14]} 48. h5 {[%emt 0:00:26]} Rd7 {[%emt 0:00:31]} 49. Re6 {[%emt 0:00:20]} Ka7 {[%emt 0:00:21]} 50. Kc2 {[%emt 0:00:05]} Kb7 {[%emt 0:00:34]} 51. Kd1 {[%emt 0:00:10]} Ka7 {[%emt 0:00:54]} 52. Ke2 {[%emt 0:00:05]} Kb7 {[%emt 0:00:31]} 53. Kf3 {[%emt 0:00:05]} Ka7 {[%emt 0:00:30]} 54. Ke4 {[%emt 0:00:13]} Kb7 {[%emt 0:00:07]} 55. Kf5 {[%emt 0:00:14]} Ka7 {[%emt 0:00:37]} 56. Re8 {[%emt 0:00:43]} Bb8 {[%emt 0:00:48]} 57. Re7 {[%emt 0:00:30]} Rxe7 {[%emt 0:00:12]} 58. Nxe7 {[%emt 0:00:05]} Kb7 {[%emt 0:00:09]} 59. Nd5 {[%emt 0:00:10]} Ba7 {[%emt 0:00:29]} 60. Kg6 {[%emt 0:00:15]} 1-0